[Event "*** Titled Tuesday Blitz"]
[Site "Chess.com"]
[Date "2020.11.24"]
[Round "3"]
[White "AvitalBor"]
[Black "ural58"]
[Result "1-0"]
[WhiteElo "2669"]
[BlackElo "2414"]
[TimeControl "180+1"]
[EndTime "10:44:41 PST"]
[Termination "AvitalBor won by resignation"]

1. e4 {[%clk 0:02:45.1]} 1... d5 {[%clk 0:02:59.3]} 2. exd5 {[%clk 0:02:40.9]}
2... Qxd5 {[%clk 0:03:00.2]} 3. Nf3 {[%clk 0:02:40.8]} 3... Bg4 {[%clk
0:02:59.2]} 4. Be2 {[%clk 0:02:40.3]} 4... Nc6 {[%clk 0:02:59.3]} 5. h3 {[%clk
0:02:39.8]} 5... Bxf3 {[%clk 0:02:58.7]} 6. Bxf3 {[%clk 0:02:40.7]} 6... Qe6+
{[%clk 0:02:58.8]} 7. Qe2 {[%clk 0:02:37.4]} 7... Qxe2+ {[%clk 0:02:58.5]} 8.
Bxe2 {[%clk 0:02:37.2]} 8... O-O-O {[%clk 0:02:58.7]} 9. d3 {[%clk 0:02:35.2]}
9... g6 {[%clk 0:02:58.8]} 10. Nc3 {[%clk 0:02:34.3]} 10... Bg7 {[%clk 0:02:54]}
11. Bd2 {[%clk 0:02:34.2]} 11... e5 {[%clk 0:02:49.9]} 12. O-O-O {[%clk
0:02:32.5]} 12... Nge7 {[%clk 0:02:49.9]} 13. Rde1 {[%clk 0:02:28.2]} 13... Rhe8
{[%clk 0:02:45.7]} 14. g4 {[%clk 0:02:22.9]} 14... Nd4 {[%clk 0:02:39.7]} 15.
Bd1 {[%clk 0:02:21.3]} 15... Nec6 {[%clk 0:02:39.7]} 16. h4 {[%clk 0:02:16.9]}
16... a6 {[%clk 0:02:37.1]} 17. h5 {[%clk 0:02:16.1]} 17... Ne6 {[%clk
0:02:29.9]} 18. Ne4 {[%clk 0:02:07.6]} 18... f5 {[%clk 0:02:25.6]} 19. gxf5
{[%clk 0:02:04.7]} 19... gxf5 {[%clk 0:02:26.5]} 20. Ng3 {[%clk 0:02:05]} 20...
Rf8 {[%clk 0:02:15.4]} 21. h6 {[%clk 0:02:02.6]} 21... Bh8 {[%clk 0:02:14.5]}
22. Rh5 {[%clk 0:02:01.2]} 22... e4 {[%clk 0:02:01.2]} 23. Rxf5 {[%clk 0:01:56]}
23... Rxf5 {[%clk 0:01:50.3]} 24. Nxf5 {[%clk 0:01:56.9]} 24... Nc5 {[%clk
0:01:45]} 25. Bg5 {[%clk 0:01:41.4]} 25... Rg8 {[%clk 0:01:26]} 26. Ne7+ {[%clk
0:01:36.9]} 26... Nxe7 {[%clk 0:01:23.7]} 27. Bxe7 {[%clk 0:01:37.5]} 27... Bd4
{[%clk 0:01:17.5]} 28. dxe4 {[%clk 0:01:30.4]} 28... Bxf2 {[%clk 0:01:16.6]} 29.
Re2 {[%clk 0:01:25.4]} 29... Bg1 {[%clk 0:01:16.3]} 30. e5 {[%clk 0:01:18.3]}
30... Kd7 {[%clk 0:01:14.2]} 31. Bf6 {[%clk 0:01:13.3]} 31... Ke6 {[%clk
0:01:14]} 32. b4 {[%clk 0:01:11.2]} 32... Nd7 {[%clk 0:01:13]} 33. c3 {[%clk
0:01:09.2]} 33... Rg3 {[%clk 0:01:05.1]} 34. Bb3+ {[%clk 0:01:07.7]} 34... Kf5
{[%clk 0:01:05.2]} 35. Bg7 {[%clk 0:01:01.5]} 35... Be3+ {[%clk 0:00:51.1]} 36.
Kc2 {[%clk 0:00:54.6]} 36... Nxe5 {[%clk 0:00:51.2]} 37. Bg8 {[%clk 0:00:47.4]}
37... Ng4 {[%clk 0:00:19.9]} 38. Bxh7+ {[%clk 0:00:40.3]} 38... Kf4 {[%clk
0:00:19.3]} 39. Bd3 {[%clk 0:00:37.5]} 39... Rh3 {[%clk 0:00:06.8]} 40. h7
{[%clk 0:00:34.4]} 1-0

[Event "*** Titled Tuesday Blitz"]
[Site "Chess.com"]
[Date "2020.11.24"]
[Round "3"]
[White "yourstrulyme"]
[Black "bylavochka"]
[Result "1-0"]
[WhiteElo "2478"]
[BlackElo "2139"]
[TimeControl "180+1"]
[EndTime "10:44:41 PST"]
[Termination "yourstrulyme won on time"]

1. d4 {[%clk 0:03:00.9]} 1... Nf6 {[%clk 0:02:58.4]} 2. Nf3 {[%clk 0:03:00.1]}
2... e6 {[%clk 0:02:58.3]} 3. Bf4 {[%clk 0:02:58.4]} 3... Be7 {[%clk 0:02:53.6]}
4. Nbd2 {[%clk 0:02:55.7]} 4... d5 {[%clk 0:02:53.2]} 5. e3 {[%clk 0:02:54.3]}
5... O-O {[%clk 0:02:53.3]} 6. Bd3 {[%clk 0:02:52.7]} 6... c5 {[%clk 0:02:48.4]}
7. c3 {[%clk 0:02:52.6]} 7... Nc6 {[%clk 0:02:47.1]} 8. Ne5 {[%clk 0:02:48.6]}
8... Nxe5 {[%clk 0:02:38.5]} 9. dxe5 {[%clk 0:02:47.2]} 9... Nd7 {[%clk
0:02:35.6]} 10. O-O {[%clk 0:02:25.5]} 10... f6 {[%clk 0:02:33.7]} 11. Nf3
{[%clk 0:02:09.7]} 11... fxe5 {[%clk 0:02:26.6]} 12. Nxe5 {[%clk 0:02:09.4]}
12... Nxe5 {[%clk 0:02:26.6]} 13. Bxe5 {[%clk 0:02:10.3]} 13... Bf6 {[%clk
0:02:23.1]} 14. Bg3 {[%clk 0:02:09.7]} 14... e5 {[%clk 0:02:20.3]} 15. Qc2
{[%clk 0:01:58.2]} 15... e4 {[%clk 0:02:19.7]} 16. Be2 {[%clk 0:01:58.1]} 16...
Bf5 {[%clk 0:02:14.5]} 17. Rad1 {[%clk 0:01:56.9]} 17... Qd7 {[%clk 0:01:57.4]}
18. Bc4 {[%clk 0:01:54.9]} 18... Be6 {[%clk 0:01:55]} 19. Bxd5 {[%clk
0:01:54.6]} 19... Bxd5 {[%clk 0:01:52.5]} 20. c4 {[%clk 0:01:55]} 20... Be6
{[%clk 0:01:19.8]} 21. Rxd7 {[%clk 0:01:53.4]} 21... Bxd7 {[%clk 0:01:20.7]} 22.
Rd1 {[%clk 0:01:50.4]} 22... Bc6 {[%clk 0:01:18.3]} 23. Bd6 {[%clk 0:01:48.8]}
23... Rf7 {[%clk 0:01:13.7]} 24. Bxc5 {[%clk 0:01:47.5]} 24... Rc8 {[%clk
0:01:05.8]} 25. Bd4 {[%clk 0:01:44.7]} 25... Be7 {[%clk 0:01:01.4]} 26. Qb3
{[%clk 0:01:39.7]} 26... Rcf8 {[%clk 0:00:55.6]} 27. Rd2 {[%clk 0:01:38.1]}
27... h6 {[%clk 0:00:47.1]} 28. Bxa7 {[%clk 0:01:27.4]} 28... Ra8 {[%clk
0:00:42.8]} 29. Bd4 {[%clk 0:01:26.3]} 29... Rf5 {[%clk 0:00:37.2]} 30. a3
{[%clk 0:01:19]} 30... Bh4 {[%clk 0:00:28.9]} 31. g3 {[%clk 0:01:18]} 31... Be7
{[%clk 0:00:28.9]} 32. Qc3 {[%clk 0:01:17.6]} 32... Rf7 {[%clk 0:00:16.8]} 33.
b4 {[%clk 0:01:16.6]} 33... Bd7 {[%clk 0:00:14]} 34. Bxg7 {[%clk 0:01:12]} 34...
Bg4 {[%clk 0:00:12.3]} 35. Bxh6 {[%clk 0:01:08.9]} 35... Bf3 {[%clk 0:00:12]}
36. h3 {[%clk 0:01:00]} 36... Rh7 {[%clk 0:00:05.6]} 37. Rd7 {[%clk 0:00:46.9]}
37... Re8 {[%clk 0:00:02.7]} 38. Qe5 {[%clk 0:00:40.9]} 38... Rxh6 {[%clk
0:00:02.5]} 39. Rxe7 {[%clk 0:00:40.9]} 39... Rxe7 {[%clk 0:00:02.2]} 40. Qxe7
{[%clk 0:00:41.8]} 40... Ra6 {[%clk 0:00:01.2]} 41. a4 {[%clk 0:00:39.1]} 1-0

[Event "*** Titled Tuesday Blitz"]
[Site "Chess.com"]
[Date "2020.11.24"]
[Round "3"]
[White "Agoking701"]
[Black "sboshaon21"]
[Result "1-0"]
[WhiteElo "2342"]
[BlackElo "2094"]
[TimeControl "180+1"]
[EndTime "10:44:41 PST"]
[Termination "Agoking701 won on time"]

1. e4 {[%clk 0:03:00.9]} 1... e5 {[%clk 0:02:59.2]} 2. Nf3 {[%clk 0:03:00.7]}
2... Nc6 {[%clk 0:02:59.8]} 3. Bc4 {[%clk 0:03:00.4]} 3... Nf6 {[%clk
0:02:55.8]} 4. d3 {[%clk 0:02:59.5]} 4... Bc5 {[%clk 0:02:54.7]} 5. c3 {[%clk
0:02:55.7]} 5... d6 {[%clk 0:02:54.2]} 6. a4 {[%clk 0:02:51.5]} 6... a6 {[%clk
0:02:51.4]} 7. Nbd2 {[%clk 0:02:47.8]} 7... O-O {[%clk 0:02:50.4]} 8. Nf1 {[%clk
0:02:46.2]} 8... d5 {[%clk 0:02:44.6]} 9. exd5 {[%clk 0:02:42.4]} 9... Nxd5
{[%clk 0:02:45.5]} 10. Ng3 {[%clk 0:02:38.6]} 10... Be6 {[%clk 0:02:15]} 11. O-O
{[%clk 0:02:29]} 11... Kh8 {[%clk 0:01:51]} 12. Re1 {[%clk 0:02:24.2]} 12... f6
{[%clk 0:01:50.5]} 13. d4 {[%clk 0:02:08.1]} 13... Bd6 {[%clk 0:01:16.8]} 14.
dxe5 {[%clk 0:01:59.2]} 14... Bxe5 {[%clk 0:01:16.1]} 15. Nxe5 {[%clk 0:01:36]}
15... Nxe5 {[%clk 0:01:15]} 16. Ba2 {[%clk 0:01:33.1]} 16... Bg8 {[%clk
0:01:10]} 17. Qc2 {[%clk 0:01:11.7]} 17... c6 {[%clk 0:00:54.2]} 18. Bd2 {[%clk
0:01:07.3]} 18... Qc7 {[%clk 0:00:50.5]} 19. Rad1 {[%clk 0:00:56.7]} 19... Ng6
{[%clk 0:00:49.2]} 20. Bc1 {[%clk 0:00:51.6]} 20... Rae8 {[%clk 0:00:44.6]} 21.
Bb1 {[%clk 0:00:51.5]} 21... Ndf4 {[%clk 0:00:39.4]} 22. Nf5 {[%clk 0:00:46.9]}
22... Rxe1+ {[%clk 0:00:16.7]} 23. Rxe1 {[%clk 0:00:46.3]} 23... c5 {[%clk
0:00:14.9]} 24. g3 {[%clk 0:00:41.1]} 24... Nh3+ {[%clk 0:00:13.4]} 25. Kg2
{[%clk 0:00:40.9]} 25... Ng5 {[%clk 0:00:12.5]} 26. Bxg5 {[%clk 0:00:28.8]}
26... fxg5 {[%clk 0:00:13.4]} 27. Qe4 {[%clk 0:00:23.4]} 27... h6 {[%clk
0:00:09.5]} 28. Kg1 {[%clk 0:00:22.9]} 28... Rd8 {[%clk 0:00:06.3]} 29. Nxh6
{[%clk 0:00:21.8]} 29... gxh6 {[%clk 0:00:03.2]} 30. Qxg6 {[%clk 0:00:21.7]}
30... Qg7 {[%clk 0:00:03.7]} 31. Qf5 {[%clk 0:00:20]} 31... Rf8 {[%clk
0:00:02.4]} 32. Qe4 {[%clk 0:00:18.7]} 32... Qf6 {[%clk 0:00:01.3]} 33. Re2
{[%clk 0:00:18.9]} 1-0

[Event "*** Titled Tuesday Blitz"]
[Site "Chess.com"]
[Date "2020.11.24"]
[Round "3"]
[White "Rodalquilar"]
[Black "inegrepus"]
[Result "1-0"]
[WhiteElo "2660"]
[BlackElo "2228"]
[TimeControl "180+1"]
[EndTime "10:44:46 PST"]
[Termination "Rodalquilar won on time"]

1. d4 {[%clk 0:03:00.9]} 1... Nf6 {[%clk 0:02:58.2]} 2. Bf4 {[%clk 0:03:01]}
2... d5 {[%clk 0:02:56.7]} 3. e3 {[%clk 0:03:01.3]} 3... g6 {[%clk 0:02:54.2]}
4. Nf3 {[%clk 0:02:58]} 4... Bg7 {[%clk 0:02:54.2]} 5. Be2 {[%clk 0:02:58.4]}
5... O-O {[%clk 0:02:54.2]} 6. O-O {[%clk 0:02:58.8]} 6... b6 {[%clk 0:02:54.2]}
7. a4 {[%clk 0:02:56.9]} 7... Bb7 {[%clk 0:02:53.5]} 8. a5 {[%clk 0:02:56.5]}
8... c5 {[%clk 0:02:50.8]} 9. c3 {[%clk 0:02:37.4]} 9... Nc6 {[%clk 0:02:49]}
10. a6 {[%clk 0:02:35.1]} 10... Bc8 {[%clk 0:02:49]} 11. Qb3 {[%clk 0:02:32.3]}
11... Na5 {[%clk 0:02:42.5]} 12. Qa3 {[%clk 0:02:30.4]} 12... c4 {[%clk
0:02:39.2]} 13. Nbd2 {[%clk 0:02:26.4]} 13... Nh5 {[%clk 0:02:25.4]} 14. Bg5
{[%clk 0:01:59.5]} 14... Re8 {[%clk 0:02:18.5]} 15. Bh4 {[%clk 0:01:51.2]} 15...
Qd6 {[%clk 0:01:47.6]} 16. Qxd6 {[%clk 0:01:25.5]} 16... exd6 {[%clk 0:01:48.5]}
17. Ng5 {[%clk 0:01:25.8]} 17... h6 {[%clk 0:01:41.5]} 18. Nh3 {[%clk 0:01:22]}
18... Nf6 {[%clk 0:01:27.9]} 19. Bxf6 {[%clk 0:01:18.9]} 19... Bxf6 {[%clk
0:01:27.7]} 20. Nf4 {[%clk 0:01:19.8]} 20... Be6 {[%clk 0:00:53.4]} 21. Bf3
{[%clk 0:01:19.8]} 21... Rac8 {[%clk 0:00:49]} 22. Nxd5 {[%clk 0:01:19.1]} 22...
Bg7 {[%clk 0:00:43]} 23. Nb4 {[%clk 0:00:53.6]} 23... f5 {[%clk 0:00:34.8]} 24.
Rfe1 {[%clk 0:00:46.9]} 24... Bf7 {[%clk 0:00:27]} 25. e4 {[%clk 0:00:44.3]}
25... fxe4 {[%clk 0:00:26.5]} 26. Nxe4 {[%clk 0:00:42.4]} 26... Rcd8 {[%clk
0:00:17.5]} 27. Nd2 {[%clk 0:00:38.1]} 27... Kf8 {[%clk 0:00:10.9]} 28. Kf1
{[%clk 0:00:33.5]} 28... g5 {[%clk 0:00:10.1]} 29. h3 {[%clk 0:00:32.2]} 29...
Nb3 {[%clk 0:00:10.4]} 30. Nxb3 {[%clk 0:00:31.9]} 30... cxb3 {[%clk 0:00:11.3]}
31. Nc6 {[%clk 0:00:31]} 31... Bc4+ {[%clk 0:00:10.6]} 32. Kg1 {[%clk
0:00:31.4]} 32... Rxe1+ {[%clk 0:00:07.6]} 33. Rxe1 {[%clk 0:00:31.4]} 33... Re8
{[%clk 0:00:08.4]} 34. Ra1 {[%clk 0:00:21.2]} 1-0

[Event "*** Titled Tuesday Blitz"]
[Site "Chess.com"]
[Date "2020.11.24"]
[Round "3"]
[White "MasterMK73"]
[Black "Korchmar_Vasiliy"]
[Result "0-1"]
[WhiteElo "2284"]
[BlackElo "2603"]
[TimeControl "180+1"]
[EndTime "10:44:46 PST"]
[Termination "Korchmar_Vasiliy won on time"]

1. e4 {[%clk 0:03:00.9]} 1... c6 {[%clk 0:03:00.3]} 2. d4 {[%clk 0:02:59.1]}
2... d5 {[%clk 0:03:00.5]} 3. e5 {[%clk 0:02:59.3]} 3... Bf5 {[%clk 0:03:00.3]}
4. Nd2 {[%clk 0:02:59]} 4... e6 {[%clk 0:02:59.9]} 5. Nb3 {[%clk 0:02:58.7]}
5... Nd7 {[%clk 0:02:52.6]} 6. Be3 {[%clk 0:02:58.1]} 6... Ne7 {[%clk
0:02:51.5]} 7. Ne2 {[%clk 0:02:57.9]} 7... h6 {[%clk 0:02:31.4]} 8. Ng3 {[%clk
0:02:57.4]} 8... Bh7 {[%clk 0:02:31.3]} 9. Bd3 {[%clk 0:02:57.2]} 9... Bxd3
{[%clk 0:02:29.5]} 10. Qxd3 {[%clk 0:02:56.4]} 10... g6 {[%clk 0:02:26.3]} 11.
O-O {[%clk 0:02:55.6]} 11... Nf5 {[%clk 0:02:24.2]} 12. Nxf5 {[%clk 0:02:54.3]}
12... gxf5 {[%clk 0:02:24.3]} 13. f4 {[%clk 0:02:50.4]} 13... Qh4 {[%clk
0:02:22.8]} 14. Rf3 {[%clk 0:02:30.6]} 14... Rg8 {[%clk 0:02:22.5]} 15. Qd2
{[%clk 0:02:23.7]} 15... O-O-O {[%clk 0:02:21.4]} 16. Qe2 {[%clk 0:02:04.9]}
16... f6 {[%clk 0:02:15.8]} 17. a4 {[%clk 0:01:53.7]} 17... Be7 {[%clk
0:02:14.2]} 18. Kh1 {[%clk 0:01:46.1]} 18... Qh5 {[%clk 0:02:13.1]} 19. a5
{[%clk 0:01:37.7]} 19... a6 {[%clk 0:02:12.2]} 20. Rc1 {[%clk 0:01:31.5]} 20...
fxe5 {[%clk 0:02:01.3]} 21. fxe5 {[%clk 0:01:27.1]} 21... Rg4 {[%clk 0:01:53.7]}
22. Rh3 {[%clk 0:01:15.9]} 22... Qg6 {[%clk 0:01:51.9]} 23. Rxh6 {[%clk
0:01:09.3]} 23... Qg7 {[%clk 0:01:51.6]} 24. Rxe6 {[%clk 0:01:04]} 24... Rg8
{[%clk 0:01:51.3]} 25. Rg1 {[%clk 0:00:54.2]} 25... Rh4 {[%clk 0:01:51.6]} 26.
g3 {[%clk 0:00:44.5]} 26... Rh7 {[%clk 0:01:51.6]} 27. Rg2 {[%clk 0:00:32.8]}
27... Nf8 {[%clk 0:01:51.8]} 28. Rxc6+ {[%clk 0:00:27.4]} 28... bxc6 {[%clk
0:01:35.4]} 29. Qxa6+ {[%clk 0:00:27.1]} 29... Kd7 {[%clk 0:01:27.5]} 30. Qb7+
{[%clk 0:00:25.6]} 30... Ke6 {[%clk 0:01:28]} 31. Qxc6+ {[%clk 0:00:24.2]} 31...
Kf7 {[%clk 0:01:28.5]} 32. a6 {[%clk 0:00:18.5]} 32... Qg4 {[%clk 0:01:17]} 33.
Qxd5+ {[%clk 0:00:17.5]} 33... Ne6 {[%clk 0:01:17.1]} 34. Nd2 {[%clk 0:00:14]}
34... Qd1+ {[%clk 0:01:15.1]} 35. Rg1 {[%clk 0:00:13.5]} 35... Rxh2+ {[%clk
0:01:02.4]} 36. Kxh2 {[%clk 0:00:11.9]} 36... Rh8+ {[%clk 0:01:02.8]} 37. Kg2
{[%clk 0:00:11.2]} 37... Qe2+ {[%clk 0:01:03.2]} 38. Bf2 {[%clk 0:00:11.3]}
38... Qxd2 {[%clk 0:01:01.3]} 39. Qf3 {[%clk 0:00:11.5]} 39... Qxc2 {[%clk
0:00:57.2]} 40. d5 {[%clk 0:00:08.8]} 40... Ng5 {[%clk 0:00:52.3]} 41. Qf4
{[%clk 0:00:06.2]} 41... Nh3 {[%clk 0:00:46]} 42. e6+ {[%clk 0:00:05.9]} 42...
Kg6 {[%clk 0:00:44]} 43. Qf3 {[%clk 0:00:01.3]} 43... Nxf2 {[%clk 0:00:44.3]}
44. Qxf2 {[%clk 0:00:01.3]} 44... Qxf2+ {[%clk 0:00:45.2]} 45. Kxf2 {[%clk
0:00:01.1]} 45... Bc5+ {[%clk 0:00:46.1]} 0-1

[Event "*** Titled Tuesday Blitz"]
[Site "Chess.com"]
[Date "2020.11.24"]
[Round "3"]
[White "isainz"]
[Black "1nikolachess"]
[Result "0-1"]
[WhiteElo "2032"]
[BlackElo "2309"]
[TimeControl "180+1"]
[EndTime "10:44:46 PST"]
[Termination "1nikolachess won on time"]

1. e4 {[%clk 0:03:00.9]} 1... e5 {[%clk 0:02:59.9]} 2. Nf3 {[%clk 0:03:00.3]}
2... Nc6 {[%clk 0:02:58.6]} 3. Bc4 {[%clk 0:03:00.5]} 3... Bc5 {[%clk
0:02:57.2]} 4. O-O {[%clk 0:03:00.5]} 4... Nf6 {[%clk 0:02:56.8]} 5. d3 {[%clk
0:02:59.9]} 5... O-O {[%clk 0:02:54]} 6. c3 {[%clk 0:02:58.2]} 6... d6 {[%clk
0:02:51.8]} 7. h3 {[%clk 0:02:57.8]} 7... a6 {[%clk 0:02:51.6]} 8. Bb3 {[%clk
0:02:50.3]} 8... Ba7 {[%clk 0:02:50.1]} 9. Re1 {[%clk 0:02:46.1]} 9... Ne7
{[%clk 0:02:47.3]} 10. Nbd2 {[%clk 0:02:44.5]} 10... Ng6 {[%clk 0:02:46.7]} 11.
Nf1 {[%clk 0:02:43.9]} 11... Nh5 {[%clk 0:02:43.3]} 12. a4 {[%clk 0:02:34.1]}
12... Nhf4 {[%clk 0:02:42]} 13. Kh2 {[%clk 0:02:24.2]} 13... Qf6 {[%clk
0:02:33.6]} 14. Be3 {[%clk 0:02:23.1]} 14... Nh4 {[%clk 0:02:21.6]} 15. Nxh4
{[%clk 0:02:17.1]} 15... Qxh4 {[%clk 0:02:19.6]} 16. Qf3 {[%clk 0:02:02.3]}
16... Nxd3 {[%clk 0:01:58.1]} 17. Re2 {[%clk 0:01:46.3]} 17... Nf4 {[%clk
0:01:57.2]} 18. Bxf4 {[%clk 0:01:38]} 18... exf4 {[%clk 0:01:58.1]} 19. Nd2
{[%clk 0:01:24.3]} 19... g5 {[%clk 0:01:50.2]} 20. Kg1 {[%clk 0:01:21.5]} 20...
Qh6 {[%clk 0:01:44.6]} 21. e5 {[%clk 0:01:12.7]} 21... Bf5 {[%clk 0:01:35.6]}
22. exd6 {[%clk 0:01:06.8]} 22... Qxd6 {[%clk 0:01:36.5]} 23. Rd1 {[%clk
0:01:01.7]} 23... Qb6 {[%clk 0:01:24.7]} 24. Re5 {[%clk 0:00:49.3]} 24... Qf6
{[%clk 0:01:04]} 25. Rde1 {[%clk 0:00:41]} 25... c6 {[%clk 0:00:56.2]} 26. Qh5
{[%clk 0:00:36.2]} 26... h6 {[%clk 0:00:49.7]} 27. Nf3 {[%clk 0:00:23.9]} 27...
Qg6 {[%clk 0:00:36.1]} 28. Qxg6+ {[%clk 0:00:17.7]} 28... Bxg6 {[%clk 0:00:37]}
29. h4 {[%clk 0:00:17.2]} 29... Bb8 {[%clk 0:00:27.3]} 30. Re7 {[%clk
0:00:13.8]} 30... g4 {[%clk 0:00:26]} 31. h5 {[%clk 0:00:12.2]} 31... Bxh5
{[%clk 0:00:20.5]} 32. Ne5 {[%clk 0:00:11.5]} 32... Bxe5 {[%clk 0:00:19.3]} 33.
R1xe5 {[%clk 0:00:09.7]} 33... Bg6 {[%clk 0:00:19.6]} 34. Rxb7 {[%clk 0:00:04]}
34... Rab8 {[%clk 0:00:20]} 35. Ree7 {[%clk 0:00:03.7]} 35... Rxb7 {[%clk
0:00:19.7]} 36. Rxb7 {[%clk 0:00:03.8]} 36... g3 {[%clk 0:00:20.5]} 37. fxg3
{[%clk 0:00:03]} 37... fxg3 {[%clk 0:00:21.4]} 38. Rb6 {[%clk 0:00:01.9]} 38...
Re8 {[%clk 0:00:21.3]} 0-1

[Event "*** Titled Tuesday Blitz"]
[Site "Chess.com"]
[Date "2020.11.24"]
[Round "3"]
[White "Omk124"]
[Black "zverr1"]
[Result "1/2-1/2"]
[WhiteElo "2355"]
[BlackElo "2520"]
[TimeControl "180+1"]
[EndTime "10:44:47 PST"]
[Termination "Game drawn by repetition"]

1. e4 {[%clk 0:03:00.9]} 1... e6 {[%clk 0:02:57.3]} 2. d4 {[%clk 0:03:00.7]}
2... d5 {[%clk 0:02:58.2]} 3. Nd2 {[%clk 0:03:00.2]} 3... c5 {[%clk 0:02:55.8]}
4. exd5 {[%clk 0:03:00.2]} 4... exd5 {[%clk 0:02:56.7]} 5. Ngf3 {[%clk
0:03:00.5]} 5... Nc6 {[%clk 0:02:55.8]} 6. Bb5 {[%clk 0:03:00.5]} 6... Qe7+
{[%clk 0:02:56.1]} 7. Be2 {[%clk 0:02:56.6]} 7... Qc7 {[%clk 0:02:55.5]} 8. O-O
{[%clk 0:02:56.6]} 8... Nf6 {[%clk 0:02:48.5]} 9. dxc5 {[%clk 0:02:57]} 9...
Bxc5 {[%clk 0:02:48.5]} 10. Nb3 {[%clk 0:02:57.4]} 10... Bb6 {[%clk 0:02:48.3]}
11. Bg5 {[%clk 0:02:57]} 11... Ne4 {[%clk 0:02:17]} 12. Qxd5 {[%clk 0:02:53.2]}
12... Nxg5 {[%clk 0:02:16.7]} 13. Qxg5 {[%clk 0:02:54.1]} 13... O-O {[%clk
0:02:15.4]} 14. Bd3 {[%clk 0:02:54.4]} 14... g6 {[%clk 0:02:08.6]} 15. Qh6
{[%clk 0:02:52.8]} 15... Ne5 {[%clk 0:02:00.8]} 16. Nxe5 {[%clk 0:02:44.4]}
16... Qxe5 {[%clk 0:02:01.7]} 17. Rae1 {[%clk 0:02:44.8]} 17... Qxb2 {[%clk
0:01:59.9]} 18. Re7 {[%clk 0:02:37.2]} 18... Qf6 {[%clk 0:01:57.4]} 19. Re4
{[%clk 0:02:34.3]} 19... Qg7 {[%clk 0:01:51]} 20. Qxg7+ {[%clk 0:02:33.3]} 20...
Kxg7 {[%clk 0:01:51.9]} 21. Re7 {[%clk 0:02:33.3]} 21... Bd8 {[%clk 0:01:39.6]}
22. Re5 {[%clk 0:02:29]} 22... Bf6 {[%clk 0:01:36.5]} 23. Re2 {[%clk 0:02:20.4]}
23... Bg4 {[%clk 0:01:32.9]} 24. f3 {[%clk 0:02:20.8]} 24... Be6 {[%clk
0:01:31.8]} 25. Kh1 {[%clk 0:02:21]} 25... b6 {[%clk 0:01:28.6]} 26. Nd2 {[%clk
0:02:18.5]} 26... Bxa2 {[%clk 0:01:23.5]} 27. Ne4 {[%clk 0:02:13.2]} 27... Be6
{[%clk 0:01:17.7]} 28. Nxf6 {[%clk 0:02:13.3]} 28... Kxf6 {[%clk 0:01:18.6]} 29.
f4 {[%clk 0:02:13.1]} 29... h5 {[%clk 0:01:15.6]} 30. f5 {[%clk 0:02:13.3]}
30... Bxf5 {[%clk 0:01:09.6]} 31. Bxf5 {[%clk 0:02:13.5]} 31... gxf5 {[%clk
0:01:10.5]} 32. Ref2 {[%clk 0:02:14.4]} 32... Rac8 {[%clk 0:01:05.5]} 33. Rxf5+
{[%clk 0:02:15.3]} 33... Ke6 {[%clk 0:01:05.2]} 34. Rxh5 {[%clk 0:02:13.6]}
34... Rxc2 {[%clk 0:01:04.7]} 35. Re1+ {[%clk 0:02:14.3]} 35... Kf6 {[%clk
0:01:03.4]} 36. Rf1+ {[%clk 0:02:12.5]} 36... Kg6 {[%clk 0:01:03.2]} 37. Rh3
{[%clk 0:02:12.2]} 37... f5 {[%clk 0:00:57.2]} 38. Rg3+ {[%clk 0:02:12]} 38...
Kf6 {[%clk 0:00:56.4]} 39. h4 {[%clk 0:02:11.3]} 39... Rh8 {[%clk 0:00:54.3]}
40. Rh3 {[%clk 0:02:11.7]} 40... Rc4 {[%clk 0:00:53.6]} 41. h5 {[%clk
0:02:07.6]} 41... Kg5 {[%clk 0:00:53.1]} 42. Kh2 {[%clk 0:02:05.6]} 42... f4
{[%clk 0:00:47.4]} 43. Ra1 {[%clk 0:02:02.7]} 43... Rc7 {[%clk 0:00:39.1]} 44.
Rd1 {[%clk 0:02:00.6]} 44... Rc5 {[%clk 0:00:34]} 45. Rd7 {[%clk 0:01:58.8]}
45... a5 {[%clk 0:00:28.6]} 46. h6 {[%clk 0:01:53.6]} 46... b5 {[%clk
0:00:20.9]} 47. h7 {[%clk 0:01:53.8]} 47... Kg6 {[%clk 0:00:20.5]} 48. Rd6+
{[%clk 0:01:53.4]} 48... Kg7 {[%clk 0:00:20.6]} 49. Rd7+ {[%clk 0:01:53.5]}
49... Kg6 {[%clk 0:00:20.6]} 50. Ra7 {[%clk 0:01:52.1]} 50... a4 {[%clk
0:00:20.4]} 51. Rh4 {[%clk 0:01:50.8]} 51... Rh5 {[%clk 0:00:20.2]} 52. Ra6+
{[%clk 0:01:48.7]} 52... Kg5 {[%clk 0:00:20.5]} 53. Rxh5+ {[%clk 0:01:46.9]}
53... Kxh5 {[%clk 0:00:21.4]} 54. Ra5 {[%clk 0:01:47.8]} 54... Rxh7 {[%clk
0:00:21.6]} 55. Rxb5+ {[%clk 0:01:48.4]} 55... Kg4+ {[%clk 0:00:22.5]} 56. Kg1
{[%clk 0:01:48.6]} 56... Ra7 {[%clk 0:00:21.9]} 57. Rb2 {[%clk 0:01:46.2]} 57...
a3 {[%clk 0:00:22.1]} 58. Ra2 {[%clk 0:01:47.1]} 58... Kg3 {[%clk 0:00:22.1]}
59. Kf1 {[%clk 0:01:47.6]} 59... Ra4 {[%clk 0:00:22.2]} 60. Kg1 {[%clk
0:01:47.3]} 60... Ra7 {[%clk 0:00:19.2]} 61. Kf1 {[%clk 0:01:47.7]} 61... f3
{[%clk 0:00:18.9]} 62. gxf3 {[%clk 0:01:48]} 62... Kxf3 {[%clk 0:00:19.8]} 63.
Ke1 {[%clk 0:01:47.4]} 63... Ke3 {[%clk 0:00:20.3]} 64. Kd1 {[%clk 0:01:48]}
64... Kd3 {[%clk 0:00:20.9]} 65. Kc1 {[%clk 0:01:48.4]} 65... Kc3 {[%clk
0:00:21.5]} 66. Kb1 {[%clk 0:01:48.9]} 66... Kb3 {[%clk 0:00:12.9]} 67. Rh2
{[%clk 0:01:47.8]} 67... Rb7 {[%clk 0:00:09.8]} 68. Ka1 {[%clk 0:01:46]} 68...
Ka4 {[%clk 0:00:09]} 69. Rh4+ {[%clk 0:01:45.9]} 69... Kb3 {[%clk 0:00:09.2]}
70. Rh3+ {[%clk 0:01:46.3]} 70... Kc2 {[%clk 0:00:09.7]} 71. Rxa3 {[%clk
0:01:45.1]} 71... Rb1+ {[%clk 0:00:08.9]} 72. Ka2 {[%clk 0:01:45.6]} 72... Rb2+
{[%clk 0:00:09.8]} 73. Ka1 {[%clk 0:01:45.9]} 73... Rb1+ {[%clk 0:00:10.7]} 74.
Ka2 {[%clk 0:01:46.7]} 74... Rb2+ {[%clk 0:00:11.6]} 75. Ka1 {[%clk 0:01:47.6]}
75... Rb1+ {[%clk 0:00:12.4]} 1/2-1/2